Cogmind - Beta 17 @@@ ROGUE MODE // 2026.07.03 @ 13:50:12 // Winter2019/RPGLIKE Player: Gallgagger Result: Self-destructed Performance ------------- Evolutions (1) 500 Regions Visited (2) 400 Robots Destroyed (38) 190 Value Destroyed (1187) 1187 Prototype IDs (0) 0 Alien Tech Used (0) 0 Bonus (40) 40 TOTAL SCORE: 2317 Bonus ------- High Alert Combat Kills 40 Cogmind --------- Core Integrity 600/600 Matter 285/300 Energy 249/250 System Corruption 0% Temperature Cool (0) Movement Core (50) Location -9/Materials Parts ------- > --- POWER (2) -------- Ion Engine > --- PROPULSION (2) --- Light Treads Light Treads > --- UTILITY (2) ------ Seismic Detector Targeting Computer > --- WEAPON (2) ------- Particle Gun Assault Rifle > --- INVENTORY (1) ---- (None) Peak State ------------ > --- POWER ------------ Ion Engine Ion Engine > --- PROPULSION ------- Light Treads Light Treads > --- UTILITY ---------- Improved Terrain Scanner Seismic Detector > --- WEAPON ----------- Light Assault Rifle Light Assault Rifle > --- INVENTORY -------- (None) [Rating: 10] Favorites ----------- Power Ion Engine Engine Ion Engine Propulsion Light Treads Treads Light Treads Utility Seismic Detector Device Seismic Detector Processor Targeting Computer Weapon Small Laser Energy Gun Small Laser Ballistic Gun Light Assault Rifle Build | -11 -10 -9 ------- Run | Yrd Mat Mat Slots Evolved 4 | 4 . . Power 1 | 1 . . Propulsion 1 | 1 . . Utility 1 | 1 . . Weapon 1 | 1 . . Parts Attached 12 | 8 4 . Power 2 | 2 . . Engine 2 | 2 . . Core . | . . . Reactor . | . . . Propulsion 2 | 2 . . Treads 2 | 2 . . Leg . | . . . Wheel . | . . . Hover . | . . . Flight . | . . . Utility 3 | 2 1 . Device 2 | 2 . . Storage . | . . . Processor 1 | . 1 . Hackware . | . . . Protection . | . . . Artifact . | . . . Weapon 5 | 2 3 . Energy Gun 2 | . 2 . Energy Cannon . | . . . Ballistic Gun 3 | 2 1 . Ballistic Cannon . | . . . Launcher . | . . . Special Weapon . | . . . Impact Weapon . | . . . Slashing Weapon . | . . . Piercing Weapon . | . . . Special Melee Weapon . | . . . Unidentified Prototypes . | . . . Parts Lost . | . . . Power . | . . . Propulsion . | . . . Utility . | . . . Weapon . | . . . Highest Loss Streak . | . . . To Critical Strikes . | . . . Average Backups . | . . . Power . | . . . Propulsion . | . . . Utility . | . . . Weapon . | . . . Tool/Special . | . . . Unused Backups . | . . . Power . | . . . Propulsion . | . . . Utility . | . . . Weapon . | . . . Tool/Special . | . . . Average Slot Usage (%) 87 | . 87 87 Engine 12 | . 12 12 Treads 25 | . 25 25 Device 17 | . 17 12 Processor 7 | . 7 12 Energy Gun 15 | . 15 12 Ballistic Gun 8 | . 8 12 Peak Build Rating 10 | 10 10 8 Average Rating 8 | 5 8 8 On Entrance 6 | . 10 8 Avg Prop Armor Cover (%) 23 | 22 23 22 Naked Turns . | . . . Heaviest Build 14 | 14 14 11 Greatest Support 30 | 30 30 13 Greatest Overweight (x) 1 | 1 1 . Average Overweight (x) . | . . . Largest Inventory Capacity 1 | 1 1 1 Average Capacity 1 | 1 1 1 Most Carried 1 | . 1 . Average Carried . | . . . Final Capacity 1 | 1 1 1 Final Carried . | . . . Class Distribution -------------------- 96% | Mutant 3% | Scavenger-Mutant Dominant Class ---------------- Mutant | -10/Materials Mutant | -9/Materials Resources | -11 -10 -9 ----------- Run | Yrd Mat Mat Matter Collected 504 | 306 198 . Remotely . | . . . Salvage Created 978 | 194 784 . Parts 86 | 11 75 . Haulers Intercepted 2 | . 2 . Recyclers Shooed 1 | 1 . . Parts Field Recycled . | . . . Retrieved Matter . | . . . Parts Self-Destructed . | . . . Prevented . | . . . Parts Restored . | . . . Kills | -11 -10 -9 ------- Run | Yrd Mat Mat Combat Hostiles Destroyed 26 | . 26 . Guns 26 | . 26 . Classes Destroyed 6 | 2 4 . Worker 1 | . 1 . Builder 3 | . 3 . Tunneler 5 | 5 . . Hauler 2 | . 2 . Recycler 1 | 1 . . Grunt 26 | . 26 . Best Kill Streak 6 | 6 5 . Combat Bots Only 3 | . 3 . Max Kills in Single Turn 1 | 1 1 . Gunslinging . | . . . Exploded . | . . . Melee . | . . . Uniques/NPCs Destroyed . | . . . Combat | -11 -10 -9 -------- Run | Yrd Mat Mat Hostile Shots Fired 124 | . 124 . Missed 26 | . 26 . Hits 98 | . 98 . Projectile 98 | . 98 . AOE 1 | . 1 . Critical Strikes 1 | . 1 . Damage Taken 1311 | . 1311 . Core 1065 | . 1065 . Absorbed by Shields . | . . . Redirected to Core 794 | . 794 . Regen/Repaired (Parts) 10 | . 10 . Core Remaining (%) 100 | 100 100 . Volleys Fired 137 | 18 119 . Largest 2 | 2 2 . Hottest 105 | 40 105 . Shots Fired 267 | 36 231 . Gun 267 | 36 231 . Cannon . | . . . Launcher . | . . . Special . | . . . Kinetic 151 | 36 115 . Thermal 116 | . 116 . Explosive . | . . . Electromagnetic . | . . . Robot Hit Streak 24 | 8 24 . Robot Miss Streak 3 | 3 3 . Penetration Max . | . . . Secondary Targets 1 | . 1 . Max Gunslinging Chain 1 | . 1 . Shots Hit Robots 186 | 22 164 . Core Hits 72 | 12 60 . Critical Kills . | . . . Critical Parts Destroyed . | . . . Critical Strikes 2 | . 2 . Burn 2 | . 2 . Melee Attacks . | . . . Impact . | . . . Slashing . | . . . Piercing . | . . . Sneak Attacks . | . . . Combat Hostiles . | . . . Follow-up Attacks . | . . . Damage Inflicted 1956 | 182 1774 . Guns 1956 | 182 1774 . Cannons . | . . . Explosions . | . . . Melee . | . . . Ramming . | . . . Kinetic 866 | 182 684 . Thermal 1090 | . 1090 . Explosive . | . . . Electromagnetic . | . . . Impact . | . . . Slashing . | . . . Piercing . | . . . Highest Corruption . | . . . Average Corruption . | . . . Corruption Purged . | . . . Corruption Blocked . | . . . Overload Shots . | . . . Overflow Damage . | . . . Projectiles . | . . . Explosions . | . . . Melee . | . . . Knockbacks . | . . . Impact . | . . . Kinetic . | . . . Secondary . | . . . Self-Inflicted Damage . | . . . Shots . | . . . Rammed . | . . . Targets Rammed . | . . . Kicked . | . . . Crushed . | . . . Highest Temperature 159 | . 159 . Average Temperature 32 | . 32 . Received Heat Transfer 693 | . 693 . Siege Activations . | . . . Martial Activations . | . . . Shielding Activations . | . . . Robots Disrupted . | . . . Combat Hostiles . | . . . Robots Corrupted . | . . . Combat Hostiles . | . . . Parts Fried . | . . . Impact Corruptions . | . . . Robots Melted . | . . . Combat Hostiles . | . . . Parts Melted 7 | . 7 . Heat Transferred 2633 | . 2633 . Parts Sabotaged . | . . . Parts Stolen . | . . . Parts Stripped . | . . . Power Chain Reactions . | . . . Alert | -11 -10 -9 ------- Run | Yrd Mat Mat Maximum Alert Level 2 | . 2 1 Low Security (%) 54 | 100 51 . Level 1 30 | . 32 100 Level 2 15 | . 16 . Level 3 . | . . . Level 4 . | . . . Level 5 . | . . . High Security . | . . . Max Security . | . . . Peak Influence 541 | 15 541 225 Initial 225 | . 6 225 Average 218 | 3 235 225 Influence Increases 1001 | 30 971 . Destroy 0b10 Robot/C 520 | . 520 . Destroy 0b10 Robot/NC 60 | 30 30 . Destroy Leader 144 | . 144 . Successful Hack 6 | . 6 . Select Force Hacks 210 | . 210 . Disable Machine 15 | . 15 . Destroy Structure 1 | . 1 . Partial Spotted 15 | . 15 . Lose Combat Pursuer 30 | . 30 . Influence Decreases 776 | 20 446 310 Entered New Map 314 | . 4 310 Time Decay 462 | 20 442 . Squads Dispatched 10 | . 10 . Investigation 10 | . 10 . Extermination . | . . . Reinforcement . | . . . Assault . | . . . Garrison . | . . . Intercept . | . . . Searches Triggered . | . . . Construction Impeded . | . . . Haulers Reinforced . | . . . Active Scanning Responses . | . . . Cargo Convoy Interrupts . | . . . Stealth | -11 -10 -9 --------- Run | Yrd Mat Mat Distress Signals 4 | . 4 . Communications Jammed . | . . . Distress Signals . | . . . Times Spotted 40 | . 40 . Peak Tracking Total 4 | . 4 . Tactical Retreats 2 | . 2 . Traps | -11 -10 -9 ------- Run | Yrd Mat Mat Traps Triggered 2 | . 2 . Indirectly . | . . . Trap Hack Attempts . | . . . Triggered . | . . . Disarmed . | . . . Reprogrammed . | . . . Reused . | . . . Traps Extracted . | . . . Installed . | . . . Triggered . | . . . Machines | -11 -10 -9 ---------- Run | Yrd Mat Mat Machines Disabled 1 | . 1 . Max in Single Turn 1 | . 1 . Machines Repaired . | . . . Machines Dismantled . | . . . Machines Sabotaged 3 | . 3 . Overloaded Fab Kills . | . . . Hacking | -11 -10 -9 --------- Run | Yrd Mat Mat Machines Accessed 10 | . 10 . Terminals 7 | . 7 . Fabricators . | . . . Repair Stations 1 | . 1 . Recycling Units 2 | . 2 . Scanalyzers . | . . . Garrison Access . | . . . Total Hacks 15 | . 15 . Successful 9 | . 9 . Failed 6 | . 6 . Catastrophic 1 | . 1 . Database Lockouts . | . . . Manual 18 | . 18 . Terminals 12 | . 12 . Fabricators . | . . . Repair Stations 1 | . 1 . Recycling Units 2 | . 2 . Scanalyzers . | . . . Garrison Access . | . . . Terminal Hacks 1 | . 1 . Robot Analysis 1 | . 1 . Fabricator Hacks . | . . . Repair Station Hacks . | . . . Recycling Unit Hacks . | . . . Scanalyzer . | . . . Garrison Access Hacks . | . . . Unauthorized Hacks 8 | . 8 . Terminals 5 | . 5 . Sabotage 5 | . 5 . Fabricators . | . . . Repair Stations 1 | . 1 . Patch 1 | . 1 . Recycling Units 2 | . 2 . Tunnel 2 | . 2 . Scanalyzers . | . . . Garrison Access . | . . . Data Cores Recovered . | . . . Used . | . . . Hacking Detections 4 | . 4 . Full Trace Events 2 | . 2 . Feedback Events . | . . . Feedback Blocked . | . . . Robot Schematics Acquired . | . . . Robots Built . | . . . Authchips . | . . . Time . | . . . Total Robot Build Rating . | . . . Part Schematics Acquired . | . . . Parts Built . | . . . Authchips . | . . . Time . | . . . Total Part Build Rating . | . . . Part Studies Acquired . | . . . Parts Repaired . | . . . Time . | . . . Parts Recycled . | . . . Recycled Matter . | . . . Retrieved Matter . | . . . Retrieved Components . | . . . Parts Scanalyzed . | . . . Part Schematics Acquired . | . . . Parts Damaged . | . . . Bothacking | -11 -10 -9 ------------ Run | Yrd Mat Mat Used RIF Installer . | . . . Robots Hacked . | . . . Non-combat . | . . . Combat . | . . . Robot Hacks Applied . | . . . Relay Couplers Released . | . . . Fabnet Peak Effective % . | . . . Robots Rewired . | . . . Allies Hacked . | . . . Hacks Repelled . | . . . Allies | -11 -10 -9 -------- Run | Yrd Mat Mat Total Allies . | . . . Largest Group . | . . . Highest-Rated Group . | . . . Highest-Rated Ally . | . . . Total Orders . | . . . Ally Attacks . | . . . Total Damage . | . . . Kills . | . . . Allies Corrupted . | . . . Allies Melted . | . . . Intel | -11 -10 -9 ------- Run | Yrd Mat Mat Active Infowar (turns) 1164 | 48 1114 2 Terrain 432 | 2 430 . Seismic 1164 | 48 1114 2 Robot Analysis Total 1 | . 1 . Derelict Logs Recovered . | . . . Drone Launches . | . . . Drone Recoveries . | . . . Exploration | -11 -10 -9 ------------- Run | Yrd Mat Mat Turns Passed 1206 | 90 1114 2 Spaces Moved 912 | 58 851 3 Core 909 | 56 850 3 Treads 3 | 2 1 . Legs . | . . . Wheels . | . . . Hover . | . . . Flight . | . . . Fastest Speed 50 | 50 50 50 Average Speed 51 | 55 50 50 Slowest Speed 160 | 160 160 50 Overloaded Moves . | . . . Propulsion Burnouts . | . . . Robots Hopped . | . . . Potential Cave-ins . | . . . Cave-ins Triggered . | . . . Exploration Rate (%) 34 | 3 99 2 Regions Visited 2 Branch Regions . Pre-discovered Areas 2 | . 2 . Known Exits Taken . | . . . Unknown Exits Taken 2 | 1 1 . Scrap Searched . | . . . Spaces Dug . | . . . Terrain Destroyed . | . . . Melee . | . . . Projectile . | . . . AOE . | . . . Terrain Rammed . | . . . Walls Destroyed . | . . . Machines Disabled . | . . . Actions | -11 -10 -9 --------- Run | Yrd Mat Mat Total 1406 | 83 1320 3 Wait 292 | . 292 . Move 910 | 57 850 3 Hop . | . . . Pick Up 1 | . 1 . Fast Attach 10 | 8 2 . Attach . | . . . Detach 1 | . 1 . Swap 4 | . 4 . Drop 2 | . 2 . Fire 137 | 18 119 . Melee . | . . . Ram . | . . . Kick . | . . . Crush . | . . . Escape Stasis . | . . . Rewire . | . . . Trap . | . . . Miscellaneous 49 | . 49 . Route ------- -11/Scrapyard -10/Materials (discovered 5 exits: [*Mat x3] / [*Min x2]) -9/Materials History --------- Turn | Location | Event 1 | -11/Scrapyard | Upgraded with Power slot (x1) 1 | -11/Scrapyard | Upgraded with Propulsion slot (x1) 1 | -11/Scrapyard | Upgraded with Utility slot (x1) 1 | -11/Scrapyard | Upgraded with Weapon slot (x1) 12 | -11/Scrapyard | Discovered new exit (range 15) 91 | -11/Scrapyard | Entered Materials 131 | -10/Materials | Discovered new exit (range 8) 225 | -10/Materials | Discovered new exit (range 10) 260 | -10/Materials | Core integrity fell below 50% 288 | -10/Materials | Core integrity fell below 20% 313 | -10/Materials | Build established: Mutant 441 | -10/Materials | Discovered new exit (range 15) 494 | -10/Materials | Reached level 2 848 | -10/Materials | Discovered new exit (range 10) 881 | -10/Materials | Reached level 3 1160 | -10/Materials | Discovered new exit (range 16) 1205 | -10/Materials | Entered another Materials area 1207 | -9/Materials | Reached level 4 1207 | -9/Materials | Self-destructed Last Messages --------------- 01147_ U-05 Engineer builds a Door. 01160_ EXIT=FOUND 01162_ T-07 Excavator is excavating. 01169_ O-16 Technician: "IFF HANDSHAKE FAILED. SECURING TERMINAL." 01173_ Connecting with Terminal... >>Force(Sabotage) SYSTEM_VULNERABLE[Nuclear Reactor] NETWORK_OVERLOAD COORDINATES_RETRIEVED 01173_ ALERT: Suspicious activity at Terminal M001. Dispatching Investigation squad. 01181_ Atomic Centrifuge disabled. 01187_ Heat Sink melted. 01187_ G-34 Mercenary destroyed. 01192_ Used Protomatter to restore core integrity (+30) 01193_ Used Protomatter to restore part integrity (+18, depleted) 01205_ U-05 Engineer builds a Door. LOCATION=UNKNOWN GOAL=ESCAPE 01207_ Reached level 4. Map ----- +----------------------------------------------------+ | | | | | | | | | | | | | | | | | | | | | | | | | | | | | | | | | ???????????????????????????????????????????? | | ???????????????????????????????????????????? | | ???????????????????????????????????????????? | | ??????????????########?????????????????????? | | ??????????????# #?????????????????????? | | ??????????????# """" #?????????????????????? | | ??????????????# """" #?????????????????????? | | ??????????????# """" #?????????????????????? | | ??????????????# #?????????????????????? | | ??????????????# @ #?????????????????????? | | ??????????????####+######+###??????????????? | | ??????????????# ??????????? | | ??????????????# ??????????? | | ??????????????# """ ""????????????? | | ??????????????###### """????????????????? | | ???????????????????? """????????????????? | | ???????????????????? ???????????????? | | ????????????????????? ??????????????? | | ????????????????????? ?????????????? | | ?????????????????????#######+#?????????????? | | ???????????????????????????????????????????? | | ???????????????????????????????????????????? | | ???????????????????????????????????????????? | | ???????????????????????????????????????????? | | ???????????????????????????????????????????? | | ???????????????????????????????????????????? | | ???????????????????????????????????????????? | | ???????????????????????????????????????????? | | ???????????????????????????????????????????? | | ???????????????????????????????????????????? | | ???????????????????????????????????????????? | | ???????????????????????????????????????????? | | ???????????????????????????????????????????? | | ???????????????????????????????????????????? | +----------------------------------------------------+ Best States ------------- Heat Dissipation 31 Energy Generation 15 Energy Capacity 400 Matter Stores 300 Matter Capacity 300 Sight Range 16 Terrain Scan Range 16 Terrain Scan Density 10 Evasion (%) 50 Targeting Accuracy 5 Recoil Reduction 1 Item Schematics ----------------- None Robot Schematics ------------------ None Fabricated ------------ Nothing Repaired ---------- Nothing Studied --------- None Alien Tech Used ----------------- None Achievements -------------- None Challenges ------------ None RPGLIKE | -11 -10 -9 --------- Run | Yrd Mat Mat Levels Raised 3 | . 2 1 XP Earned 8975 | 3000 4475 1500 XP Spent 3900 | 3000 900 . Upgrades 10 | 8 2 . Power Slot 1 | 1 . . Propulsion Slot 1 | 1 . . Utility Slot 1 | 1 . . Weapon Slot 1 | 1 . . Heat Dissipation 1 | 1 . . Mass Support 2 | 2 . . Inventory Capacity 1 | 1 . . Ranged Accuracy 2 | . 2 . Protomatter Created 500 | . 500 . Integrity Restored 1083 | . 1083 . Core 1065 | . 1065 . Parts 18 | . 18 . Protomatter Decayed 68 | . 68 . Game ------ Seed ModifiedSpectralMaxwheels Manual? 1 Play Time 00:07:21 Cumulative 638.8 hours Start 2026.07.03 @ 13:42:40 End 2026.07.03 @ 13:50:12 Sessions 1 Manual Loads 0 Difficulty Rogue Special Mode Winter2019/RPGLIKE Game No. 250 Rogue 96 Adventurer 154 Explorer 0 Win Type - Total 21 Types 4/4/4/3/2/1/0/1/1/1 Lore% 95 Gallery% 88 Achievement% 62 Wizard Run 0 Options --------- Layout 0 ASCII 0 Keyboard 0 Movement Numpad Keybinds 0 Fullscreen 2 Font 18/SmallcapsGlow Map View 76x50 Zoom Use 0% Tactical HUD 1 Map Filters NONE Filters NONE Steam 1 RUN: 750d1d50-cfc3-47ad-8b91-8688c25f355f